fUST/lending_fUST_20240704
["ID","MTS","AMOUNT","RATE_DAILY","PERIOD"]
[331087876,1720073447254,-773.3,0.00015592,2]
[331087877,1720073447263,-568.17,0.00015592,2]
[331087878,1720073447273,-2750.98,0.00015592,2]
[331087879,1720073447283,-393.79152139,0.00015592,2]
[331087880,1720073447293,-899.18,0.00015592,2]
[331087881,1720073447302,-607.16,0.00015592,2]
[331087882,1720073447311,-3012.99,0.00015592,2]
[331087883,1720073447320,-691.64,0.00015593,2]
[331087884,1720073447332,-222.84962544,0.00015593,2]
[331087885,1720073447341,-500.0,0.00015593,2]
[331087886,1720073447349,-500.0,0.00015593,2]
[331087887,1720073447358,-1051.33,0.00015593,2]
[331087888,1720073447369,-208.00112897,0.00015593,2]
[331087889,1720073447378,-613.62,0.00015593,2]
[331087890,1720073447387,-889.27,0.00015593,2]
[331087891,1720073447396,-500.0,0.00015593,2]
[331087892,1720073447406,-500.0,0.00015593,2]
[331087893,1720073447416,-527.11,0.00015593,2]
[331087894,1720073447426,-500.0,0.00015593,2]
[331087895,1720073447435,-500.0,0.00015593,2]
[331087896,1720073447444,-500.0,0.00015593,2]
[331087897,1720073447453,-615.4243372,0.00015593,2]
[331087898,1720073447462,-500.0,0.00015593,2]
[331087899,1720073447472,-500.0,0.00015593,2]
[331087900,1720073447481,-500.0,0.00015593,2]
[331087901,1720073447491,-500.0,0.00015593,2]
[331087902,1720073447500,-585.76,0.00015593,2]
[331087903,1720073447509,-500.0,0.00015593,2]
[331087904,1720073447518,-500.0,0.00015593,2]
[331087905,1720073447528,-500.0,0.00015593,2]
[331087906,1720073447537,-500.0,0.00015593,2]
[331087907,1720073447547,-500.0,0.00015593,2]
[331087908,1720073447557,-500.0,0.00015593,2]
[331087909,1720073447566,-557.36,0.00015593,2]
[331087910,1720073447575,-500.0,0.00015593,2]
[331087911,1720073447585,-500.0,0.00015593,2]
[331087912,1720073447594,-612.53,0.00015593,2]
[331087913,1720073447603,-500.0,0.00015593,2]
[331087914,1720073447612,-500.0,0.00015593,2]
[331087915,1720073447622,-500.0,0.00015593,2]
[331087916,1720073447631,-500.0,0.00015593,2]
[331087917,1720073447641,-366.26633608,0.00015593,2]
[331087918,1720073447650,-500.0,0.00015593,2]
[331087919,1720073447661,-500.0,0.00015593,2]
[331087920,1720073447670,-500.0,0.00015593,2]
[331087921,1720073447680,-500.0,0.00015593,2]
[331087922,1720073447689,-500.0,0.00015593,2]
[331087923,1720073447699,-500.0,0.00015593,2]
[331087924,1720073447708,-3011.08,0.00015593,2]
[331087925,1720073447718,-500.0,0.00015593,2]
[331087926,1720073447727,-169.09393802,0.000156,2]
[331087927,1720073447736,-3425.50314733,0.000156,2]
[331087928,1720073447913,-2715.56685267,0.000156,2]
[331087929,1720073447923,-500.0,0.000156,2]
[331087930,1720073447934,-1556.87,0.000156,2]
[331087931,1720073447947,-635.75,0.000156,2]
[331087932,1720073447957,-500.0,0.000156,2]
[331087933,1720073447966,-500.0,0.00015602,2]
[331087934,1720073447975,-360.39037733,0.00015602,2]
[331087935,1720073460409,10000.0,0.00014,2]
[331087941,1720073522802,19476.4545575,0.00013411,2]
[331087946,1720073668792,250.0,0.00013274,2]
[331087947,1720073691819,1244.1044637,0.00013699,2]
[331087950,1720073791018,155.11676193,9.999e-05,2]
[331087955,1720073946292,11133.48750384,0.0001212,2]
[331087975,1720074352187,-212.4573057,0.00014219,2]
[331087978,1720074427107,-155.75056647,0.00014055,2]
[331087979,1720074430173,-153.95521303,0.00014055,2]
[331087980,1720074430199,-156.01691106,0.0001412,2]
[331087981,1720074430219,-300.0,0.00014218,2]
[331087982,1720074430241,-136.36772404,0.00014218,2]
[331087983,1720074435224,-159.62149372,0.00014218,2]
[331087984,1720074442666,-4.01078224,0.00014218,2]
[331087985,1720074442687,-139.11066905,0.00014219,2]
[331087986,1720074442710,-171.2005709,0.00014219,2]
[331087987,1720074442731,-500.0,0.00014219,2]
[331087988,1720074442753,-1325.58,0.00014219,2]
[331087989,1720074442774,-500.0,0.00014219,2]
[331087990,1720074442795,-120.74583305,0.00014219,2]
[331087991,1720074444526,-252.17501703,0.00014219,2]
[331087992,1720074444547,-191.80513681,0.00014219,2]
[331087993,1720074444568,-118.04431323,0.00014219,2]
[331087994,1720074446988,-54.59343761,0.00014219,2]
[331087995,1720074447010,-283.94401654,0.00014219,2]
[331087996,1720074451065,-242.19353293,0.00014219,2]
[331088051,1720074632452,-300.0,0.00014212,2]
[331088053,1720074632462,-295.0,0.00014212,2]
[331088055,1720074632471,-581.46,0.00014213,2]
[331088125,1720074638468,-21183.1444125,0.00014213,2]
[331088127,1720074638478,-159.82322146,0.00014218,2]
[331088128,1720074638488,-296.48791577,0.00014218,2]
[331088130,1720074638497,-500.0,0.00014218,2]
[331088132,1720074638507,-500.0,0.00014218,2]
[331088134,1720074638517,-500.0,0.00014219,2]
[331088135,1720074638527,-1357.99,0.00014219,2]
[331088136,1720074638536,-1561.31,0.00014219,2]
[331088138,1720074638546,-500.0,0.00014219,2]
[331088139,1720074638556,-807.99,0.00014219,2]
[331088141,1720074638566,-6111.81,0.00014219,2]
[331088143,1720074638578,-408.82,0.00014219,2]
[331088145,1720074638587,-604.58,0.00014219,2]
[331088147,1720074638597,-500.0,0.00014219,2]
[331088148,1720074638607,-2948.23,0.00014219,2]
[331088150,1720074638616,-500.0,0.00014219,2]
[331088152,1720074638626,-500.0,0.00014219,2]
[331088154,1720074638635,-500.0,0.00014219,2]
[331088156,1720074638646,-500.0,0.00014219,2]
[331088157,1720074638655,-1395.33,0.00014219,2]
[331088158,1720074638665,-500.0,0.00014219,2]
[331088160,1720074638675,-1645.82,0.00014219,2]
[331088162,1720074638685,-500.0,0.00014219,2]
[331088163,1720074638695,-962.2,0.00014219,2]
[331088164,1720074638704,-730.35,0.00014219,2]
[331088165,1720074638715,-8842.0,0.00014219,2]
[331088166,1720074638725,-3421.22,0.00014219,2]
[331088167,1720074638734,-623.29,0.00014219,2]
[331088168,1720074638744,-1117.55,0.00014219,2]
[331088169,1720074638754,-2146.91,0.00014219,2]
[331088170,1720074638764,-500.0,0.00014219,2]
[331088171,1720074638773,-500.0,0.00014219,2]
[331088172,1720074638783,-545.05,0.00014219,2]
[331088173,1720074638793,-500.0,0.00014219,2]
[331088174,1720074638802,-500.0,0.00014219,2]
[331088175,1720074638812,-500.0,0.0001422,2]
[331088176,1720074638823,-500.0,0.0001422,2]
[331088177,1720074638833,-500.0,0.0001422,2]
[331088178,1720074638843,-500.0,0.0001422,2]
[331088179,1720074638853,-500.0,0.0001422,2]
[331088180,1720074638863,-500.0,0.0001422,2]
[331088181,1720074638873,-500.0,0.0001422,2]
[331088182,1720074638882,-500.0,0.0001422,2]
[331088183,1720074638892,-500.0,0.0001422,2]
[331088184,1720074638902,-500.0,0.0001422,2]
[331088185,1720074638912,-513.45,0.0001422,2]
[331088186,1720074638922,-500.0,0.0001422,2]
[331088187,1720074638931,-751.0,0.0001422,2]
[331088188,1720074638940,-500.0,0.0001422,2]
[331088189,1720074638950,-422.97963733,0.0001422,2]
[331088190,1720074638959,-500.0,0.0001422,2]
[331088191,1720074638969,-490.82196108,0.0001422,2]
[331088192,1720074638979,-500.0,0.0001422,2]
[331088193,1720074638989,-500.0,0.0001422,2]
[331088194,1720074639130,-1077.73,0.0001422,2]
[331088195,1720074639153,-500.0,0.0001422,2]
[331088196,1720074639163,-500.0,0.0001422,2]
[331088197,1720074639174,-500.0,0.0001422,2]
[331088198,1720074639184,-500.0,0.0001422,2]
[331088199,1720074639195,-500.0,0.0001422,2]
[331088200,1720074639205,-500.0,0.0001422,2]
[331088201,1720074639216,-500.0,0.0001422,2]
[331088202,1720074639226,-573.55,0.0001422,2]
[331088203,1720074639236,-500.0,0.0001422,2]
[331088204,1720074639252,-831.4,0.0001422,2]
[331088205,1720074639262,-500.0,0.0001422,2]
[331088206,1720074639272,-500.0,0.0001422,2]
[331088207,1720074639282,-500.0,0.0001422,2]
[331088208,1720074639295,-500.0,0.0001422,2]
[331088209,1720074639308,-500.0,0.0001422,2]
[331088210,1720074639319,-500.0,0.0001422,2]
[331088211,1720074639333,-500.0,0.0001422,2]
[331088212,1720074639343,-500.0,0.0001422,2]
[331088213,1720074639353,-500.0,0.0001422,2]
[331088214,1720074639364,-500.0,0.0001422,2]
[331088215,1720074639374,-500.0,0.0001422,2]
[331088216,1720074639384,-193.98649616,0.0001422,2]
[331088217,1720074639394,-500.0,0.0001422,2]
[331088218,1720074639404,-500.0,0.0001422,2]
[331088219,1720074639415,-500.0,0.0001422,2]
[331088220,1720074639426,-500.0,0.0001422,2]
[331088221,1720074639436,-234.07913535,0.0001422,2]
[331088222,1720074639446,-500.0,0.0001422,2]
[331088223,1720074639456,-500.0,0.0001422,2]
[331088224,1720074639466,-500.0,0.0001422,2]
[331088225,1720074639475,-500.0,0.0001422,2]
[331088226,1720074639485,-500.0,0.0001422,2]
[331088227,1720074639495,-500.0,0.0001422,2]
[331088228,1720074639505,-500.0,0.0001422,2]
[331088229,1720074639515,-500.0,0.0001422,2]
[331088230,1720074639525,-500.0,0.0001422,2]
[331088231,1720074639537,-500.0,0.0001422,2]
[331088232,1720074639554,-500.0,0.0001422,2]
[331088233,1720074639570,-500.0,0.0001422,2]
[331088234,1720074639582,-500.0,0.0001422,2]
[331088235,1720074639593,-500.0,0.0001422,2]
[331088236,1720074639602,-500.0,0.0001422,2]
[331088237,1720074639614,-500.0,0.0001422,2]
[331088238,1720074639624,-500.0,0.0001422,2]
[331088239,1720074639634,-552.01,0.0001422,2]
[331088240,1720074639644,-500.0,0.0001422,2]
[331088241,1720074639655,-500.0,0.0001422,2]
[331088242,1720074639664,-500.0,0.0001422,2]
[331088243,1720074639675,-500.0,0.0001422,2]
[331088244,1720074639686,-500.0,0.0001422,2]
[331088245,1720074639696,-500.0,0.0001422,2]
[331088246,1720074639706,-500.0,0.0001422,2]
[331088247,1720074639716,-607.29,0.0001422,2]
[331088248,1720074639727,-500.0,0.0001422,2]
[331088249,1720074639737,-500.0,0.0001422,2]
[331088250,1720074639747,-573.59046043,0.0001422,2]
[331088251,1720074639757,-500.0,0.0001422,2]
[331088252,1720074639766,-518.75977937,0.0001422,2]
[331088253,1720074639776,-500.0,0.0001422,2]
[331088254,1720074639786,-500.0,0.0001422,2]
[331088255,1720074639796,-500.0,0.0001422,2]
[331088256,1720074639806,-500.0,0.0001422,2]
[331088257,1720074639816,-282.88312774,0.0001422,2]
[331088258,1720074639828,-504.90757833,0.0001422,2]
[331088259,1720074639838,-500.0,0.0001422,2]
[331088260,1720074639848,-500.0,0.0001422,2]
[331088261,1720074639858,-500.0,0.0001422,2]
[331088262,1720074639868,-2961.14,0.0001422,2]
[331088263,1720074639878,-586.44041,0.0001422,2]
[331088264,1720074639888,-500.0,0.0001422,2]
[331088265,1720074639899,-500.0,0.0001422,2]
[331088267,1720074639909,-871.45,0.0001422,2]
[331088268,1720074639919,-500.0,0.0001422,2]
[331088270,1720074639929,-500.0,0.0001422,2]
[331088273,1720074639940,-500.0,0.0001422,2]
[331088274,1720074639950,-683.83,0.0001422,2]
[331088275,1720074639960,-188.04326466,0.0001422,2]
[331088276,1720074639971,-500.0,0.0001422,2]
[331088277,1720074639980,-500.0,0.0001422,2]
[331088278,1720074639991,-500.0,0.0001422,2]
[331088279,1720074640001,-500.0,0.0001422,2]
[331088280,1720074640011,-500.0,0.0001422,2]
[331088281,1720074640021,-500.0,0.0001422,2]
[331088282,1720074640032,-500.0,0.0001422,2]
[331088283,1720074640043,-500.0,0.0001422,2]
[331088284,1720074640054,-500.0,0.00014221,2]
[331088285,1720074640064,-500.0,0.00014221,2]
[331088286,1720074640075,-500.0,0.00014221,2]
[331088287,1720074640086,-500.0,0.00014221,2]
[331088288,1720074640096,-500.0,0.00014221,2]
[331088289,1720074640106,-500.0,0.00014221,2]
[331088291,1720074640116,-500.0,0.00014221,2]
[331088292,1720074640127,-500.0,0.00014221,2]
[331088293,1720074640137,-500.0,0.00014221,2]
[331088294,1720074640146,-500.0,0.00014221,2]
[331088295,1720074640156,-500.0,0.00014221,2]
[331088296,1720074640167,-500.0,0.00014221,2]
[331088297,1720074640176,-500.0,0.00014221,2]
[331088298,1720074640186,-529.45,0.00014221,2]
[331088299,1720074640197,-500.0,0.00014221,2]
[331088300,1720074640207,-500.0,0.00014221,2]
[331088301,1720074640217,-500.0,0.00014221,2]
[331088302,1720074640227,-500.0,0.00014221,2]
[331088304,1720074640238,-500.0,0.00014221,2]
[331088306,1720074640249,-500.0,0.00014221,2]
[331088308,1720074640264,-500.0,0.00014221,2]
[331088310,1720074640275,-500.0,0.00014221,2]
[331088311,1720074640286,-500.0,0.00014221,2]
[331088312,1720074640298,-342.61697353,0.00014221,2]
[331088313,1720074640307,-296.47946959,0.00014221,2]
[331088314,1720074640318,-500.0,0.00014221,2]
[331088315,1720074640329,-500.0,0.00014221,2]
[331088316,1720074640341,-559.70959437,0.00014221,2]
[331088317,1720074640351,-500.0,0.00014221,2]
[331088318,1720074640360,-500.0,0.00014221,2]
[331088319,1720074640371,-543.46,0.00014222,2]
[331088321,1720074640381,-500.0,0.00014223,2]
[331088323,1720074640392,-500.0,0.00014223,2]
[331088324,1720074640402,-500.0,0.00014223,2]
[331088325,1720074640412,-4617.44,0.00014223,2]
[331088326,1720074640422,-849.98,0.00014223,2]
[331088327,1720074640433,-7124.73,0.0001423,2]
[331088328,1720074640444,-500.0,0.0001423,2]
[331088329,1720074640455,-500.0,0.0001423,2]
[331088330,1720074640466,-500.0,0.0001423,2]
[331088331,1720074640476,-512.67,0.00014232,2]
[331088332,1720074640487,-667.16,0.00014232,2]
[331088333,1720074640498,-2219.68,0.00014232,2]
[331088334,1720074640508,-21764.6044125,0.00014483,2]
[331088335,1720074640518,-21764.6044125,0.00014484,2]
[331088336,1720074640529,-370.92067888,0.00014492,2]
[331088337,1720074640540,-607.86951301,0.00014492,2]
[331088338,1720074640550,-1718.43620243,0.00014493,2]
[331088339,1720074640560,-500.0,0.00014493,2]
[331088340,1720074640571,-1357.99,0.00014493,2]
[331088341,1720074640585,-1561.31,0.00014493,2]
[331088342,1720074640595,-500.0,0.00014493,2]
[331088343,1720074640607,-807.99,0.00014493,2]
[331088344,1720074640618,-6111.81,0.00014493,2]
[331088345,1720074640630,-604.58,0.00014493,2]
[331088346,1720074640641,-500.0,0.00014493,2]
[331088347,1720074640652,-2948.23,0.00014493,2]
[331088348,1720074640664,-500.0,0.00014493,2]
[331088349,1720074640675,-500.0,0.00014493,2]
[331088350,1720074640686,-500.0,0.00014493,2]
[331088351,1720074640696,-500.0,0.00014493,2]
[331088352,1720074640707,-1395.33,0.00014493,2]
[331088353,1720074640718,-500.0,0.00014493,2]
[331088354,1720074640728,-1645.82,0.00014493,2]
[331088355,1720074640738,-962.2,0.00014493,2]
[331088356,1720074640749,-730.35,0.00014493,2]
[331088357,1720074640759,-8842.0,0.00014493,2]
[331088358,1720074640769,-3421.22,0.00014493,2]
[331088359,1720074640780,-623.29,0.00014493,2]
[331088360,1720074640791,-1117.55,0.00014493,2]
[331088361,1720074640801,-2146.91,0.00014493,2]
[331088362,1720074640811,-545.05,0.00014493,2]
[331088363,1720074640822,-500.0,0.00014493,2]
[331088364,1720074640836,-500.0,0.00014493,2]
[331088365,1720074640849,-500.0,0.00014494,2]
[331088366,1720074640859,-500.0,0.00014494,2]
[331088367,1720074640869,-500.0,0.00014494,2]
[331088368,1720074640877,-511.241059,0.00014494,2]
[331088369,1720074640887,-500.0,0.00014494,2]
[331088370,1720074640898,-500.0,0.00014494,2]
[331088371,1720074640907,-500.0,0.00014494,2]
[331088372,1720074640916,-500.0,0.00014494,2]
[331088373,1720074640925,-513.45,0.00014494,2]
[331088374,1720074640935,-500.0,0.00014494,2]
[331088375,1720074640944,-751.0,0.00014494,2]
[331088376,1720074640953,-500.0,0.00014494,2]
[331088377,1720074640964,-500.0,0.00014494,2]
[331088378,1720074640973,-500.0,0.00014494,2]
[331088379,1720074640983,-500.0,0.00014494,2]
[331088380,1720074640992,-1077.73,0.00014494,2]
[331088381,1720074641002,-500.0,0.00014494,2]
[331088382,1720074641011,-500.0,0.00014494,2]
[331088383,1720074641021,-500.0,0.00014494,2]
[331088384,1720074641031,-500.0,0.00014494,2]
[331088385,1720074641041,-397.6592249,0.00014494,2]
[331088386,1720074641051,-500.0,0.00014494,2]
[331088387,1720074641060,-573.55,0.00014494,2]
[331088388,1720074641070,-500.0,0.00014494,2]
[331088389,1720074641082,-831.4,0.00014494,2]
[331088390,1720074641092,-500.0,0.00014494,2]
[331088391,1720074641101,-500.0,0.00014494,2]
[331088392,1720074641110,-500.0,0.00014494,2]
[331088393,1720074641119,-500.0,0.00014494,2]
[331088394,1720074641128,-500.0,0.00014494,2]
[331088395,1720074641137,-500.0,0.00014494,2]
[331088396,1720074641147,-500.0,0.00014494,2]
[331088397,1720074641157,-500.0,0.00014494,2]
[331088398,1720074641166,-500.0,0.00014494,2]
[331088399,1720074641176,-500.0,0.00014494,2]
[331088400,1720074641186,-500.0,0.00014494,2]
[331088401,1720074641196,-500.0,0.00014494,2]
[331088402,1720074641206,-566.91614325,0.00014494,2]
[331088403,1720074641215,-500.0,0.00014494,2]
[331088404,1720074641225,-500.0,0.00014494,2]
[331088405,1720074641233,-500.0,0.00014494,2]
[331088406,1720074641245,-500.0,0.00014494,2]
[331088407,1720074641256,-500.0,0.00014494,2]
[331088408,1720074641265,-500.0,0.00014494,2]
[331088409,1720074641274,-649.93365918,0.00014494,2]
[331088410,1720074641285,-500.0,0.00014494,2]
[331088411,1720074641295,-500.0,0.00014494,2]
[331088412,1720074641304,-500.0,0.00014494,2]
[331088413,1720074641313,-500.0,0.00014494,2]
[331088414,1720074641327,-500.0,0.00014494,2]
[331088415,1720074641336,-500.0,0.00014494,2]
[331088416,1720074641346,-500.0,0.00014494,2]
[331088417,1720074641354,-500.0,0.00014494,2]
[331088418,1720074641363,-500.0,0.00014494,2]
[331088419,1720074641372,-500.0,0.00014494,2]
[331088420,1720074641381,-500.0,0.00014494,2]
[331088421,1720074641390,-552.01,0.00014494,2]
[331088422,1720074641400,-500.0,0.00014494,2]
[331088423,1720074641409,-500.0,0.00014494,2]
[331088424,1720074641419,-500.0,0.00014494,2]
[331088425,1720074641429,-500.0,0.00014494,2]
[331088426,1720074641439,-500.0,0.00014494,2]
[331088427,1720074641448,-500.0,0.00014494,2]
[331088428,1720074641458,-500.0,0.00014494,2]
[331088429,1720074641467,-607.29,0.00014494,2]
[331088430,1720074641477,-500.0,0.00014494,2]
[331088431,1720074641486,-500.0,0.00014494,2]
[331088432,1720074641496,-500.0,0.00014494,2]
[331088433,1720074641504,-500.0,0.00014494,2]
[331088434,1720074641513,-500.0,0.00014494,2]
[331088435,1720074641523,-500.0,0.00014494,2]
[331088436,1720074641533,-500.0,0.00014494,2]
[331088437,1720074641543,-500.0,0.00014494,2]
[331088438,1720074641552,-2961.14,0.00014494,2]
[331088439,1720074641562,-500.0,0.00014494,2]
[331088440,1720074641572,-500.0,0.00014494,2]
[331088441,1720074641582,-871.45,0.00014494,2]
[331088442,1720074641592,-500.0,0.00014494,2]
[331088443,1720074641602,-609.05376527,0.00014494,2]
[331088444,1720074641612,-683.83,0.00014494,2]
[331088445,1720074641622,-500.0,0.00014494,2]
[331088446,1720074641631,-500.0,0.00014494,2]
[331088447,1720074641641,-500.0,0.00014494,2]
[331088448,1720074641651,-500.0,0.00014495,2]
[331088449,1720074641661,-500.0,0.00014495,2]
[331088450,1720074641670,-589.78587083,0.00014495,2]
[331088451,1720074641679,-500.0,0.00014495,2]
[331088452,1720074641688,-500.0,0.00014495,2]
[331088453,1720074641698,-500.0,0.00014495,2]
[331088454,1720074641707,-500.0,0.00014495,2]
[331088455,1720074641718,-500.0,0.00014495,2]
[331088456,1720074641728,-500.0,0.00014495,2]
[331088457,1720074641737,-500.0,0.00014495,2]
[331088458,1720074641747,-500.0,0.00014495,2]
[331088459,1720074641756,-500.0,0.00014495,2]
[331088460,1720074641765,-529.45,0.00014495,2]
[331088461,1720074641775,-500.0,0.00014495,2]
[331088462,1720074641784,-500.0,0.00014495,2]
[331088463,1720074641793,-500.0,0.00014495,2]
[331088464,1720074641803,-500.0,0.00014495,2]
[331088465,1720074641812,-500.0,0.00014495,2]
[331088466,1720074641821,-500.0,0.00014495,2]
[331088467,1720074641832,-500.0,0.00014495,2]
[331088468,1720074641842,-500.0,0.00014495,2]
[331088469,1720074641851,-500.0,0.00014495,2]
[331088470,1720074641859,-500.0,0.00014495,2]
[331088471,1720074641869,-500.0,0.00014495,2]
[331088472,1720074641878,-500.0,0.00014495,2]
[331088473,1720074641888,-518.79065479,0.00014495,2]
[331088474,1720074641898,-500.0,0.00014497,2]
[331088475,1720074641907,-500.0,0.00014497,2]
[331088476,1720074641917,-500.0,0.00014497,2]
[331088477,1720074641926,-4617.44,0.00014497,2]
[331088478,1720074641935,-849.98,0.00014497,2]
[331088479,1720074641944,-7124.73,0.00014504,2]
[331088480,1720074641954,-500.0,0.00014504,2]
[331088481,1720074641964,-500.0,0.00014504,2]
[331088482,1720074641973,-500.0,0.00014504,2]
[331088483,1720074641983,-512.67,0.00014506,2]
[331088484,1720074641992,-667.16,0.00014506,2]
[331088485,1720074642001,-4093.45,0.00014506,2]
[331088486,1720074642011,-2219.68,0.00014506,2]
[331088487,1720074642020,-88888.0,0.00014668,2]
[331088488,1720074642029,-21764.6044125,0.00014757,2]
[331088489,1720074642039,-21764.6044125,0.00014758,2]
[331088490,1720074642048,-500.0,0.00014767,2]
[331088491,1720074642057,-1357.99,0.00014767,2]
[331088492,1720074642067,-1561.31,0.00014767,2]
[331088493,1720074642190,-500.0,0.00014767,2]
[331088494,1720074642200,-807.99,0.00014767,2]
[331088495,1720074642210,-6111.81,0.00014767,2]
[331088496,1720074642220,-604.58,0.00014767,2]
[331088497,1720074642230,-500.0,0.00014767,2]
[331088498,1720074642240,-2948.23,0.00014767,2]
[331088499,1720074642256,-500.0,0.00014767,2]
[331088500,1720074642265,-500.0,0.00014767,2]
[331088501,1720074642275,-500.0,0.00014767,2]
[331088502,1720074642284,-500.0,0.00014767,2]
[331088503,1720074642295,-1395.33,0.00014767,2]
[331088504,1720074642304,-614.04872408,0.00014767,2]
[331088505,1720074642313,-1645.82,0.00014767,2]
[331088506,1720074642323,-962.2,0.00014767,2]
[331088507,1720074642335,-730.35,0.00014767,2]
[331088508,1720074642346,-8842.0,0.00014767,2]
[331088509,1720074642355,-3421.22,0.00014767,2]
[331088510,1720074642365,-623.29,0.00014767,2]
[331088511,1720074642374,-1117.55,0.00014767,2]
[331088512,1720074642386,-2146.91,0.00014767,2]
[331088513,1720074642395,-545.05,0.00014767,2]
[331088514,1720074642404,-500.0,0.00014767,2]
[331088515,1720074642413,-500.0,0.00014768,2]
[331088516,1720074642422,-206.29724468,0.00014768,2]
[331088517,1720074642432,-469.70322727,0.00014768,2]
[331088518,1720074642442,-500.0,0.00014768,2]
[331088519,1720074642451,-513.45,0.00014768,2]
[331088520,1720074642461,-500.0,0.00014768,2]
[331088521,1720074642472,-751.0,0.00014768,2]
[331088522,1720074642481,-500.0,0.00014768,2]
[331088523,1720074642491,-500.0,0.00014768,2]
[331088524,1720074642500,-500.0,0.00014768,2]
[331088525,1720074642510,-1077.73,0.00014768,2]
[331088526,1720074642520,-500.0,0.00014768,2]
[331088527,1720074642529,-500.0,0.00014768,2]
[331088528,1720074642539,-500.0,0.00014768,2]
[331088529,1720074642548,-573.55,0.00014768,2]
[331088530,1720074642558,-831.4,0.00014768,2]
[331088531,1720074642568,-500.0,0.00014768,2]
[331088532,1720074642580,-500.0,0.00014768,2]
[331088533,1720074642590,-500.0,0.00014768,2]
[331088534,1720074642599,-500.0,0.00014768,2]
[331088535,1720074642609,-500.0,0.00014768,2]
[331088536,1720074642619,-500.0,0.00014768,2]
[331088537,1720074642629,-500.0,0.00014768,2]
[331088538,1720074642640,-500.0,0.00014768,2]
[331088539,1720074642650,-500.0,0.00014768,2]
[331088540,1720074642660,-500.0,0.00014768,2]
[331088541,1720074642669,-500.0,0.00014768,2]
[331088542,1720074642680,-500.0,0.00014768,2]
[331088543,1720074642690,-500.0,0.00014768,2]
[331088544,1720074642699,-500.0,0.00014768,2]
[331088545,1720074642709,-500.0,0.00014768,2]
[331088546,1720074642719,-500.0,0.00014768,2]
[331088547,1720074642729,-500.0,0.00014768,2]
[331088548,1720074642739,-500.0,0.00014768,2]
[331088549,1720074642748,-500.0,0.00014768,2]
[331088550,1720074642758,-500.0,0.00014768,2]
[331088551,1720074642767,-500.0,0.00014768,2]
[331088552,1720074642776,-500.0,0.00014768,2]
[331088553,1720074642786,-500.0,0.00014768,2]
[331088555,1720074642796,-500.0,0.00014768,2]
[331088556,1720074642805,-552.01,0.00014768,2]
[331088558,1720074642815,-500.0,0.00014768,2]
[331088560,1720074642824,-500.0,0.00014768,2]
[331088561,1720074642833,-500.0,0.00014768,2]
[331088563,1720074642843,-500.0,0.00014768,2]
[331088565,1720074642852,-638.58535056,0.00014768,2]
[331088566,1720074642862,-500.0,0.00014768,2]
[331088567,1720074642871,-500.0,0.00014768,2]